fUSD/lending_fUSD_20241107
["ID","MTS","AMOUNT","RATE_DAILY","PERIOD"]
[341593882,1731012645480,-1039.8,0.00027671,2]
[341593883,1731012645496,-1254.76,0.00027671,2]
[341593884,1731012645507,-756.09,0.00027671,2]
[341593885,1731012645518,-749.02,0.00027671,2]
[341593886,1731012645529,-619.89,0.00027671,2]
[341593887,1731012645541,-974.06,0.00027671,2]
[341593888,1731012645553,-523.21,0.00027671,2]
[341593889,1731012645564,-626.21,0.00027671,2]
[341593890,1731012645576,-2495.49,0.00027671,2]
[341593891,1731012645587,-666.36,0.00027671,2]
[341593892,1731012645598,-500.0,0.00027671,2]
[341593893,1731012645609,-500.0,0.00027671,2]
[341593894,1731012645620,-500.0,0.00027671,2]
[341593895,1731012645631,-500.0,0.00027671,2]
[341593896,1731012645642,-500.0,0.00027671,2]
[341593897,1731012645653,-500.0,0.00027671,2]
[341593898,1731012645664,-682.24,0.00027671,2]
[341593899,1731012645675,-858.15,0.00027671,2]
[341593900,1731012645687,-500.0,0.00027671,2]
[341593901,1731012645697,-500.0,0.00027671,2]
[341593902,1731012645708,-500.0,0.00027671,2]
[341593903,1731012645720,-500.0,0.00027671,2]
[341593904,1731012645731,-1559.4,0.00027671,2]
[341593905,1731012645744,-1243.12,0.00027671,2]
[341593906,1731012645755,-500.0,0.00027671,2]
[341593907,1731012645765,-500.0,0.00027671,2]
[341593908,1731012645777,-827.78,0.00027671,2]
[341593909,1731012645788,-507.15929118,0.00027671,2]
[341593911,1731012645800,-500.0,0.00027671,2]
[341593914,1731012645811,-500.0,0.00027671,2]
[341593916,1731012645822,-744.19,0.00027671,2]
[341593918,1731012645834,-500.0,0.00027671,2]
[341593920,1731012645846,-500.0,0.00027671,2]
[341593923,1731012645857,-881.11,0.00027671,2]
[341593926,1731012645868,-500.0,0.00027671,2]
[341593930,1731012645880,-500.0,0.00027671,2]
[341593933,1731012645891,-506.18,0.00027671,2]
[341593936,1731012645903,-500.0,0.00027671,2]
[341593939,1731012645914,-500.0,0.00027671,2]
[341593942,1731012645926,-500.0,0.00027671,2]
[341593945,1731012645938,-500.0,0.00027671,2]
[341593949,1731012645953,-8575.51,0.00027671,2]
[341593953,1731012645966,-500.0,0.00027671,2]
[341593956,1731012645978,-500.0,0.00027671,2]
[341593959,1731012645990,-547.71,0.00027671,2]
[341593962,1731012646003,-500.0,0.00027671,2]
[341593964,1731012646014,-500.0,0.00027671,2]
[341593966,1731012646027,-500.0,0.00027671,2]
[341593969,1731012646038,-500.0,0.00027671,2]
[341593971,1731012646048,-500.0,0.00027671,2]
[341593973,1731012646057,-534.32,0.00027671,2]
[341593975,1731012646067,-500.0,0.00027671,2]
[341593977,1731012646077,-500.0,0.00027671,2]
[341593979,1731012646086,-1391.28,0.00027671,2]
[341593981,1731012646097,-500.0,0.00027671,2]
[341593983,1731012646107,-500.0,0.00027671,2]
[341593985,1731012646116,-313.73346155,0.00027671,2]
[341593987,1731012646127,-757.16,0.00027671,2]
[341593989,1731012646138,-575.2,0.00027671,2]
[341593991,1731012646148,-552.58,0.00027671,2]
[341593993,1731012646157,-565.13,0.00027671,2]
[341593995,1731012646168,-500.0,0.00027671,2]
[341593997,1731012646178,-551.87,0.00027671,2]
[341593999,1731012646187,-746.28,0.00027671,2]
[341594001,1731012646198,-786.92,0.00027671,2]
[341594003,1731012646209,-500.0,0.00027671,2]
[341594005,1731012646219,-1053.7,0.00027671,2]
[341594007,1731012646230,-540.01,0.00027671,2]
[341594009,1731012646242,-500.0,0.00027671,2]
[341594011,1731012646252,-535.92,0.00027671,2]
[341594013,1731012646261,-500.0,0.00027671,2]
[341594015,1731012646271,-500.0,0.00027671,2]
[341594017,1731012646281,-500.0,0.00027671,2]
[341594019,1731012646290,-500.0,0.00027671,2]
[341594021,1731012646300,-185.93119895,0.00027671,2]
[341594023,1731012646310,-892.59,0.00027671,2]
[341594026,1731012646320,-1238.42,0.00027671,2]
[341594028,1731012646329,-500.0,0.00027671,2]
[341594032,1731012646339,-1483.61,0.00027671,2]
[341594034,1731012646351,-500.0,0.00027671,2]
[341594037,1731012646362,-2700.66,0.00027671,2]
[341594040,1731012646372,-500.0,0.00027671,2]
[341594043,1731012646382,-578.91,0.00027671,2]
[341594045,1731012646392,-500.0,0.00027671,2]
[341594047,1731012646403,-1407.12,0.00027671,2]
[341594049,1731012646412,-869.23,0.00027671,2]
[341594051,1731012646423,-636.97,0.00027671,2]
[341594053,1731012646435,-500.0,0.00027671,2]
[341594055,1731012646446,-870.48,0.00027671,2]
[341594057,1731012646455,-573.84,0.00027671,2]
[341594059,1731012646466,-500.0,0.00027671,2]
[341594111,1731012647014,-500.0,0.00027671,2]
[341594114,1731012647034,-500.0,0.00027671,2]
[341594117,1731012647052,-500.0,0.00027671,2]
[341594120,1731012647074,-500.0,0.00027671,2]
[341594122,1731012647090,-529.93,0.00027671,2]
[341594124,1731012647100,-500.0,0.00027671,2]
[341594126,1731012647110,-500.0,0.00027671,2]
[341594128,1731012647119,-500.0,0.00027671,2]
[341594130,1731012647128,-1567.8,0.00027671,2]
[341594131,1731012647137,-500.0,0.00027671,2]
[341594132,1731012647147,-1032.92,0.00027671,2]
[341594133,1731012647156,-500.0,0.00027671,2]
[341594134,1731012647165,-500.0,0.00027671,2]
[341594135,1731012647174,-662.44,0.00027671,2]
[341594136,1731012647184,-1046.06,0.00027671,2]
[341594137,1731012647193,-500.0,0.00027671,2]
[341594138,1731012647202,-602.91420016,0.00027671,2]
[341594139,1731012647211,-548.44,0.00027671,2]
[341594140,1731012647220,-2415.92,0.00027671,2]
[341594142,1731012647230,-633.03,0.00027671,2]
[341594144,1731012647241,-500.0,0.00027671,2]
[341594146,1731012647250,-2554.98,0.00027671,2]
[341594148,1731012647260,-500.0,0.00027671,2]
[341594150,1731012647269,-500.0,0.00027671,2]
[341594152,1731012647278,-500.0,0.00027671,2]
[341594154,1731012647287,-500.0,0.00027671,2]
[341594156,1731012647297,-1200.21,0.00027671,2]
[341594157,1731012647306,-500.0,0.00027671,2]
[341594159,1731012647315,-1397.05,0.00027671,2]
[341594161,1731012647324,-500.0,0.00027671,2]
[341594163,1731012647334,-500.0,0.00027671,2]
[341594165,1731012647344,-916.43,0.00027671,2]
[341594167,1731012647356,-739.65,0.00027671,2]
[341594169,1731012647365,-1489.16,0.00027671,2]
[341594171,1731012647374,-793.83,0.00027671,2]
[341594173,1731012647384,-529.86,0.00027671,2]
[341594175,1731012647394,-807.24,0.00027671,2]
[341594177,1731012647405,-500.0,0.00027671,2]
[341594179,1731012647414,-500.0,0.00027671,2]
[341594181,1731012647428,-500.0,0.00027671,2]
[341594183,1731012647439,-500.0,0.00027671,2]
[341594185,1731012647448,-1227.43,0.00027671,2]
[341594187,1731012647458,-1506.68,0.00027671,2]
[341594189,1731012647467,-500.0,0.00027671,2]
[341594191,1731012647476,-2157.2,0.00027671,2]
[341594193,1731012647486,-500.0,0.00027671,2]
[341594195,1731012647495,-500.0,0.00027671,2]
[341594197,1731012647504,-500.0,0.00027671,2]
[341594199,1731012647511,-500.0,0.00027671,2]
[341594201,1731012647519,-717.74,0.00027671,2]
[341594202,1731012647527,-500.0,0.00027671,2]
[341594203,1731012647536,-500.0,0.00027671,2]
[341594204,1731012647545,-526.32,0.00027671,2]
[341594205,1731012647553,-500.0,0.00027671,2]
[341594206,1731012647562,-1665.09,0.00027671,2]
[341594207,1731012647569,-500.0,0.00027671,2]
[341594208,1731012647577,-519.15,0.00027671,2]
[341594209,1731012647585,-597.76,0.00027671,2]
[341594210,1731012647593,-548.32,0.00027671,2]
[341594211,1731012647601,-540.22,0.00027671,2]
[341594212,1731012647611,-500.0,0.00027671,2]
[341594213,1731012647619,-655.32,0.00027671,2]
[341594214,1731012647628,-500.0,0.00027671,2]
[341594215,1731012647637,-672.06,0.00027671,2]
[341594216,1731012647647,-500.0,0.00027671,2]
[341594217,1731012647655,-3823.7,0.00027671,2]
[341594218,1731012647664,-500.0,0.00027671,2]
[341594219,1731012647673,-500.0,0.00027671,2]
[341594220,1731012647682,-500.0,0.00027671,2]
[341594221,1731012647691,-500.0,0.00027671,2]
[341594222,1731012647700,-500.0,0.00027671,2]
[341594223,1731012647710,-552.92,0.00027671,2]
[341594224,1731012647719,-500.0,0.00027671,2]
[341594225,1731012647728,-500.0,0.00027671,2]
[341594226,1731012647738,-500.0,0.00027671,2]
[341594227,1731012647748,-500.0,0.00027671,2]
[341594228,1731012647757,-500.0,0.00027671,2]
[341594229,1731012647766,-335.29973532,0.00027671,2]
[341594230,1731012647775,-500.0,0.00027671,2]
[341594231,1731012647784,-2743.59,0.00027671,2]
[341594232,1731012647794,-679.8,0.00027671,2]
[341594233,1731012647804,-500.0,0.00027671,2]
[341594234,1731012647813,-730.94,0.00027671,2]
[341594235,1731012647822,-245.6082806,0.00027671,2]
[341594236,1731012647840,-301.8817194,0.00027671,2]
[341594237,1731012647849,-448.1182806,0.00027671,2]
[341594238,1731012648263,-108.5817194,0.00027671,2]
[341594239,1731012648272,-224.978165,0.00027671,2]
[341594240,1731012648582,-644.29,0.00027397,2]
[341594241,1731012648591,-220.98500003,0.00027397,2]
[341594242,1731012648603,-344.10232958,0.00027397,2]
[341594243,1731012648613,-500.0,0.00027397,2]
[341594244,1731012648622,-139.38867042,0.00027397,2]
[341594245,1731012648642,-360.61132958,0.00027397,2]
[341594246,1731012648651,-275.021835,0.00027671,2]
[341594247,1731012648661,-548.84,0.00027671,2]
[341594248,1731012648670,-500.0,0.00027671,2]
[341594249,1731012648680,-260.08677542,0.00027671,2]
[341594250,1731012648695,-1527.54,0.00027671,2]
[341594251,1731012648706,-1376.96322458,0.00027671,2]
[341594252,1731012648717,-502.54,0.00027671,2]
[341594253,1731012648727,-603.06,0.00027671,2]
[341594254,1731012648737,-423.52125652,0.00027671,2]
[341594255,1731012648750,-76.47874348,0.00027671,2]
[341594256,1731012648759,-239.12125652,0.00027671,2]
[341594257,1731012648865,-86.60440566,0.00027671,2]
[341594258,1731012649483,-258.05247702,0.00027397,2]
[341594259,1731012649494,-889.79,0.00027397,10]
[341594260,1731012649503,-174.27433782,0.00027671,2]
[341594261,1731012649513,-462.02020315,0.00027671,2]
[341594262,1731012649713,-500.0,0.00027671,2]
[341594263,1731012649723,-670.66,0.00027671,2]
[341594264,1731012649733,-500.0,0.00027671,2]
[341594265,1731012649742,-500.0,0.00027671,2]
[341594266,1731012649752,-438.87,0.00027671,2]
[341594267,1731012649762,-627.19,0.00027671,2]
[341594268,1731012649772,-500.0,0.00027671,2]
[341594269,1731012649782,-500.0,0.00027671,2]
[341594270,1731012649792,-1545.71247733,0.00027671,2]
[341594271,1731012649830,-1023.3848,0.00027671,2]
[341594272,1731012649846,-1404.01272267,0.00027671,2]
[341594273,1731012649856,-500.0,0.00027671,2]
[341594274,1731012649866,-601.61,0.00027671,2]
[341594275,1731012649877,-1534.43,0.00027671,2]
[341594276,1731012649886,-729.11,0.00027671,2]
[341594277,1731012649896,-631.25,0.00027671,2]
[341594278,1731012649905,-500.0,0.00027671,2]
[341594279,1731012649915,-500.0,0.00027671,2]
[341594280,1731012649924,-695.83,0.00027671,2]
[341594281,1731012649933,-1305.23,0.00027671,2]
[341594282,1731012649943,-534.47,0.00027671,2]
[341594283,1731012649952,-500.0,0.00027671,2]
[341594284,1731012649961,-835.65,0.00027671,2]
[341594285,1731012649971,-1332.7,0.00027671,2]
[341594286,1731012649980,-4323.6,0.00027671,2]
[341594287,1731012649991,-812.36,0.00027671,2]
[341594288,1731012650000,-500.0,0.00027671,2]
[341594289,1731012650010,-500.0,0.00027671,2]
[341594290,1731012650020,-500.0,0.00027671,2]
[341594291,1731012650030,-500.0,0.00027671,2]
[341594292,1731012650039,-882.88,0.00027671,2]
[341594293,1731012650048,-1871.3,0.00027671,2]
[341594294,1731012650058,-609.01,0.00027671,2]
[341594295,1731012650068,-500.0,0.00027671,2]
[341594296,1731012650077,-719.07,0.00027671,2]
[341594297,1731012650087,-806.89,0.00027671,2]
[341594298,1731012650096,-500.0,0.00027671,2]
[341594299,1731012650105,-1676.69,0.00027671,2]
[341594300,1731012650114,-500.0,0.00027671,2]
[341594301,1731012650124,-6716.81,0.00027671,2]
[341594302,1731012650134,-661.15,0.00027671,2]
[341594303,1731012650143,-500.0,0.00027671,2]
[341594304,1731012650152,-500.0,0.00027671,2]
[341594305,1731012650162,-847.53,0.00027671,2]
[341594306,1731012650172,-515.02188149,0.00027671,2]
[341594307,1731012650181,-500.0,0.00027671,2]
[341594308,1731012650191,-500.0,0.00027671,2]
[341594309,1731012650200,-530.59,0.00027671,2]
[341594310,1731012650209,-644.29,0.00027671,2]
[341594311,1731012650218,-500.0,0.00027671,2]
[341594312,1731012650228,-150.0,0.00027697,2]
[341594313,1731012650238,-479.95518379,0.00027712,2]
[341594314,1731012650249,-150.0,0.00027713,2]
[341594315,1731012650258,-2000.0,0.00027718,5]
[341594316,1731012650268,-900.0,0.00027789,7]
[341594317,1731012650278,-600.0,0.000278,10]
[341594318,1731012650288,-150.0,0.00027822,2]
[341594319,1731012650298,-150.0,0.00027832,2]
[341594320,1731012650308,-1000.0,0.000279,10]
[341594321,1731012650318,-150.0,0.0002794,2]
[341594322,1731012650327,-500.0,0.00027945,2]
[341594323,1731012650337,-500.0,0.00027945,2]
[341594324,1731012650348,-505.37,0.00027945,2]
[341594325,1731012650360,-357.92335617,0.00027945,2]
[341594326,1731012650369,-500.0,0.00027945,2]
[341594327,1731012650379,-585.26,0.00027945,2]
[341594328,1731012650389,-547.07,0.00027945,2]
[341594329,1731012650399,-500.0,0.00027945,2]
[341594330,1731012650409,-500.0,0.00027945,2]
[341594331,1731012650418,-985.72,0.00027945,2]
[341594332,1731012650429,-500.0,0.00027945,2]
[341594333,1731012650438,-500.0,0.00027945,2]
[341594334,1731012650448,-500.0,0.00027945,2]
[341594335,1731012650458,-500.0,0.00027945,2]
[341594336,1731012650467,-500.0,0.00027945,2]
[341594337,1731012650477,-500.0,0.00027945,2]
[341594338,1731012650487,-500.0,0.00027945,2]
[341594339,1731012650497,-701.71,0.00027945,2]
[341594340,1731012650506,-500.0,0.00027945,2]
[341594341,1731012650516,-500.0,0.00027945,2]
[341594342,1731012650525,-500.0,0.00027945,2]
[341594343,1731012650535,-500.0,0.00027945,2]
[341594344,1731012650544,-500.0,0.00027945,2]
[341594345,1731012650554,-500.0,0.00027945,2]
[341594346,1731012650564,-500.0,0.00027945,2]
[341594347,1731012650574,-500.0,0.00027945,2]
[341594348,1731012650584,-500.0,0.00027945,2]
[341594349,1731012650593,-985.93,0.00027945,2]
[341594350,1731012650603,-620.71,0.00027945,2]
[341594351,1731012650612,-500.0,0.00027945,2]
[341594352,1731012650622,-500.0,0.00027945,2]
[341594353,1731012650632,-500.0,0.00027945,2]
[341594354,1731012650641,-379.75283405,0.00027945,2]
[341594355,1731012650651,-500.0,0.00027945,2]
[341594356,1731012650661,-500.0,0.00027945,2]
[341594357,1731012650670,-500.0,0.00027945,2]
[341594358,1731012650680,-681.74,0.00027945,2]
[341594359,1731012650691,-500.0,0.00027945,2]
[341594360,1731012650700,-500.0,0.00027945,2]
[341594361,1731012650710,-344.24,0.00027945,2]
[341594362,1731012650719,-500.0,0.00027945,2]
[341594363,1731012650729,-500.0,0.00027945,2]
[341594364,1731012650740,-500.0,0.00027945,2]
[341594365,1731012650749,-500.0,0.00027945,2]
[341594366,1731012650758,-500.0,0.00027945,2]
[341594367,1731012650768,-500.0,0.00027945,2]
[341594368,1731012650777,-554.45,0.00027945,2]
[341594369,1731012650787,-500.0,0.00027945,2]
[341594370,1731012650796,-500.0,0.00027945,2]
[341594371,1731012650806,-500.0,0.00027945,2]
[341594372,1731012650815,-500.0,0.00027945,2]
[341594373,1731012650824,-500.0,0.00027945,2]
[341594374,1731012650834,-500.0,0.00027945,2]
[341594375,1731012650844,-667.74,0.00027945,2]
[341594376,1731012650854,-500.0,0.00027945,2]
[341594377,1731012650863,-500.0,0.00027945,2]
[341594378,1731012650873,-150.97396905,0.00027945,2]
[341594379,1731012650968,-349.02603095,0.00027945,2]
[341594380,1731012650978,-500.0,0.00027945,2]
[341594381,1731012650987,-500.0,0.00027945,2]
[341594382,1731012650998,-500.0,0.00027945,2]
[341594383,1731012651007,-500.0,0.00027945,2]
[341594384,1731012651018,-500.0,0.00027945,2]
[341594385,1731012651028,-500.0,0.00027945,2]
[341594386,1731012651040,-500.0,0.00027945,2]
[341594387,1731012651049,-500.0,0.00027945,2]
[341594388,1731012651059,-500.0,0.00027945,2]
[341594389,1731012651070,-500.0,0.00027945,2]
[341594390,1731012651080,-500.0,0.00027945,2]
[341594391,1731012651090,-500.0,0.00027945,2]
[341594392,1731012651099,-500.0,0.00027945,2]
[341594393,1731012651109,-500.0,0.00027945,2]
[341594394,1731012651118,-405.59661197,0.00027945,2]
[341594395,1731012651129,-500.0,0.00027945,2]
[341594396,1731012651139,-531.92,0.00027945,2]
[341594397,1731012651148,-500.0,0.00027945,2]
[341594398,1731012651158,-500.0,0.00027945,2]
[341594399,1731012651168,-500.0,0.00027945,2]
[341594400,1731012651179,-624.38,0.00027945,2]
[341594401,1731012651188,-500.0,0.00027945,2]
[341594402,1731012651197,-500.0,0.00027945,2]
[341594403,1731012651206,-500.0,0.00027945,2]
[341594404,1731012651216,-500.0,0.00027945,2]
[341594405,1731012651225,-500.0,0.00027945,2]
[341594406,1731012651234,-500.0,0.00027945,2]
[341594407,1731012651244,-500.0,0.00027945,2]
[341594408,1731012651254,-500.0,0.00027945,2]
[341594409,1731012651263,-500.0,0.00027945,2]
[341594410,1731012651273,-500.0,0.00027945,2]
[341594411,1731012651282,-500.0,0.00027945,2]
[341594412,1731012651291,-500.0,0.00027945,2]
[341594413,1731012651301,-500.0,0.00027945,2]
[341594414,1731012651310,-500.0,0.00027945,2]
[341594415,1731012651319,-500.0,0.00027945,2]
[341594416,1731012651328,-500.0,0.00027945,2]
[341594417,1731012651338,-500.0,0.00027945,2]
[341594418,1731012651347,-778.35,0.00027945,2]
[341594419,1731012651359,-500.0,0.00027945,2]
[341594420,1731012651368,-1744.56,0.00027945,2]
[341594421,1731012651378,-688.34,0.00027945,2]
[341594422,1731012651387,-602.41,0.00027945,2]
[341594423,1731012651396,-500.0,0.00027945,2]
[341594424,1731012651406,-3226.65,0.00027945,2]
[341594425,1731012651415,-788.78,0.00027945,2]
[341594426,1731012651424,-500.0,0.00027945,2]
[341594427,1731012651434,-500.0,0.00027945,2]
[341594428,1731012651444,-500.0,0.00027945,2]
[341594429,1731012651453,-500.0,0.00027945,2]
[341594430,1731012651462,-500.0,0.00027945,2]
[341594431,1731012651471,-827.58,0.00027945,2]
[341594432,1731012651480,-500.0,0.00027945,2]
[341594433,1731012651490,-500.0,0.00027945,2]
[341594434,1731012651504,-500.0,0.00027945,2]
[341594435,1731012651514,-500.0,0.00027945,2]
[341594436,1731012651523,-500.0,0.00027945,2]
[341594437,1731012651532,-500.0,0.00027945,2]
[341594438,1731012651541,-698.4,0.00027945,2]
[341594439,1731012651551,-500.0,0.00027945,2]
[341594440,1731012651560,-956.55,0.00027945,2]
[341594441,1731012651570,-598.05,0.00027945,2]
[341594442,1731012651579,-544.57783678,0.00027945,2]
[341594443,1731012651589,-500.0,0.00027945,2]
[341594444,1731012651598,-677.4,0.00027945,2]
[341594445,1731012651607,-813.26,0.00027945,2]
[341594446,1731012651616,-500.0,0.00027945,2]
[341594447,1731012651625,-668.93,0.00027945,2]
[341594448,1731012651634,-500.0,0.00027945,2]
[341594449,1731012651643,-500.0,0.00027945,2]
[341594450,1731012651652,-764.06,0.00027945,2]
[341594451,1731012651661,-477.47676541,0.00027945,2]
[341594452,1731012651675,-22.52323459,0.00027945,2]
[341594453,1731012651684,-500.0,0.00027945,2]
[341594454,1731012651694,-500.0,0.00027945,2]
[341594455,1731012651703,-693.83,0.00027945,2]
[341594456,1731012651712,-500.0,0.00027945,2]
[341594457,1731012651721,-530.85,0.00027945,2]
[341594458,1731012651731,-600.35,0.00027945,2]
[341594459,1731012651740,-634.47,0.00027945,2]
[341594460,1731012651753,-10.17003048,0.00027945,2]
[341594461,1731012652326,-121.54432409,0.00027397,2]
[341594462,1731012652416,-378.45567591,0.00027397,2]
[341594463,1731012652426,-485.47782409,0.00027397,2]
[341594464,1731012652442,-14.52217591,0.00027397,2]
[341594465,1731012652451,-500.0,0.00027397,2]
[341594466,1731012652460,-500.0,0.00027397,2]
[341594467,1731012652469,-500.0,0.00027397,2]
[341594468,1731012652478,-258.06,0.00027671,2]
[341594469,1731012652487,-315.4,0.00027671,2]
[341594470,1731012652497,-500.0,0.00027671,2]
[341594471,1731012652507,-500.0,0.00027671,2]
[341594472,1731012652516,-500.0,0.00027671,2]
[341594473,1731012652525,-568.97873293,0.00027945,2]
[341594474,1731012652534,-528.95,0.00027945,2]
[341594475,1731012652543,-676.55,0.00027945,2]
[341594476,1731012652552,-500.0,0.00027945,2]
[341594477,1731012652561,-647.38,0.00027945,2]
[341594478,1731012652571,-500.0,0.00027945,2]
[341594479,1731012652580,-500.0,0.00027945,2]
[341594480,1731012652589,-500.0,0.00027945,2]
[341594481,1731012652598,-770.3,0.00027945,2]
[341594482,1731012652607,-500.0,0.00027945,2]
[341594483,1731012652615,-500.0,0.00027945,2]
[341594484,1731012652625,-500.0,0.00027945,2]
[341594485,1731012652634,-1161.48,0.00027945,2]
[341594486,1731012652643,-500.0,0.00027945,2]
[341594487,1731012652652,-500.0,0.00027945,2]
[341594488,1731012652662,-500.0,0.00027945,2]
[341594489,1731012652671,-500.0,0.00027945,2]
[341594490,1731012652680,-500.0,0.00027945,2]
[341594491,1731012652689,-500.0,0.00027945,2]
[341594492,1731012652698,-500.0,0.00027945,2]
[341594493,1731012652707,-500.0,0.00027945,2]
[341594494,1731012652716,-226.7949777,0.00027945,2]
[341594495,1731012652725,-500.0,0.00027945,2]
[341594496,1731012652734,-500.0,0.00027945,2]
[341594497,1731012652744,-500.0,0.00027945,2]
[341594498,1731012652754,-500.0,0.00027945,2]
[341594499,1731012652762,-500.0,0.00027945,2]
[341594500,1731012652771,-853.22,0.00027945,2]
[341594501,1731012652780,-229.91278837,0.00027945,2]
[341594502,1731012652789,-500.0,0.00027945,2]
[341594503,1731012652798,-500.0,0.00027945,2]
[341594504,1731012652807,-1595.27,0.00027945,2]
[341594505,1731012652817,-243.63453743,0.00027945,2]
[341594506,1731012652826,-568.93776316,0.00027945,2]
[341594507,1731012652835,-500.0,0.00027945,2]
[341594508,1731012652845,-500.0,0.00027945,2]
[341594509,1731012652854,-781.21,0.00027945,2]
[341594510,1731012652863,-624.19,0.00027945,2]
[341594511,1731012652872,-771.53,0.00027945,2]
[341594512,1731012652881,-500.0,0.00027945,2]
[341594513,1731012652890,-552.21,0.00027945,2]
[341594514,1731012652899,-579.51,0.00027945,2]
[341594515,1731012652909,-500.0,0.00027945,2]
[341594516,1731012652918,-766.64,0.00027945,2]
[341594517,1731012652928,-502.11975131,0.00027945,2]
[341594518,1731012652938,-628.45,0.00027945,2]
[341594519,1731012652947,-500.0,0.00027945,2]
[341594520,1731012652956,-502.15,0.00027945,2]
[341594521,1731012652966,-500.0,0.00027945,2]
[341594522,1731012652975,-535.99,0.00027945,2]
[341594523,1731012652985,-500.0,0.00027945,2]
[341594524,1731012652995,-500.0,0.00027945,2]
[341594525,1731012653005,-500.0,0.00027945,2]
[341594526,1731012653014,-500.0,0.00027945,2]
[341594527,1731012653023,-500.0,0.00027945,2]
[341594528,1731012653033,-588.98,0.00027945,2]
[341594529,1731012653043,-500.0,0.00027945,2]
[341594530,1731012653052,-500.0,0.00027945,2]
[341594531,1731012653062,-500.0,0.00027945,2]
[341594532,1731012653071,-506.98,0.00027945,2]
[341594533,1731012653080,-500.0,0.00027945,2]
[341594534,1731012653089,-500.0,0.00027945,2]
[341594535,1731012653099,-500.0,0.00027945,2]
[341594536,1731012653108,-500.0,0.00027945,2]
[341594537,1731012653117,-715.56,0.00027945,2]
[341594538,1731012653127,-269.0,0.00027945,2]
[341594539,1731012653136,-500.0,0.00027945,2]
[341594540,1731012653145,-500.0,0.00027945,2]
[341594541,1731012653154,-500.0,0.00027945,2]
[341594542,1731012653164,-560.42907979,0.00027945,2]
[341594543,1731012653173,-500.0,0.00027945,2]
[341594544,1731012653183,-500.0,0.00027945,2]
[341594545,1731012653192,-500.0,0.00027945,2]
[341594546,1731012653201,-500.0,0.00027945,2]
[341594547,1731012653210,-1031.71,0.00027945,2]
[341594548,1731012653220,-500.0,0.00027945,2]
[341594549,1731012653229,-500.0,0.00027945,2]
[341594550,1731012653238,-717.15,0.00027945,2]
[341594551,1731012653248,-500.0,0.00027945,2]
[341594552,1731012653258,-500.0,0.00027945,2]
[341594553,1731012653267,-719.17,0.00027945,2]
[341594554,1731012653276,-546.23,0.00027945,2]
[341594555,1731012653285,-500.0,0.00027945,2]
[341594556,1731012653294,-500.0,0.00027945,2]
[341594557,1731012653303,-500.0,0.00027945,2]
[341594558,1731012653312,-598.28,0.00027945,2]
[341594559,1731012653321,-500.0,0.00027945,2]
[341594560,1731012653331,-584.36,0.00027945,2]